fUSD/lending_fUSD_20260205
["ID","MTS","AMOUNT","RATE_DAILY","PERIOD"]
[404550495,1770279044912,-500.0,0.00017973,2]
[404550496,1770279044922,-520.97702983,0.00017973,2]
[404550497,1770279044932,-500.0,0.00017973,2]
[404550498,1770279044942,-500.0,0.00017973,2]
[404550499,1770279044952,-500.0,0.00017973,2]
[404550500,1770279044962,-500.0,0.00017973,2]
[404550501,1770279044972,-500.0,0.00017973,2]
[404550502,1770279044985,-500.0,0.00017973,2]
[404550503,1770279044995,-500.0,0.00017973,2]
[404550504,1770279045004,-500.0,0.00017973,2]
[404550505,1770279045015,-500.0,0.00017973,2]
[404550506,1770279045026,-500.0,0.00017973,2]
[404550507,1770279045036,-500.0,0.00017973,2]
[404550508,1770279045046,-500.0,0.00017973,2]
[404550509,1770279045057,-500.0,0.00017973,2]
[404550510,1770279045066,-561.5530591,0.00017973,2]
[404550511,1770279045075,-160.11845722,0.00017973,2]
[404550512,1770279045084,-500.0,0.00017973,2]
[404550513,1770279045094,-500.0,0.00017973,2]
[404550514,1770279045104,-500.0,0.00017973,2]
[404550515,1770279045114,-500.0,0.00017973,2]
[404550516,1770279045123,-500.0,0.00017973,2]
[404550517,1770279045133,-500.0,0.00017973,2]
[404550518,1770279045143,-500.0,0.00017973,2]
[404550519,1770279045153,-500.0,0.00017973,2]
[404550520,1770279045163,-500.0,0.00017973,2]
[404550521,1770279045173,-500.0,0.00017973,2]
[404550522,1770279045183,-502.08032841,0.00017973,2]
[404550523,1770279045193,-500.0,0.00017973,2]
[404550524,1770279045202,-500.0,0.00017973,2]
[404550525,1770279045212,-500.0,0.00017973,2]
[404550526,1770279045263,-500.0,0.00017973,2]
[404550527,1770279045273,-500.0,0.00017973,2]
[404550528,1770279045282,-500.0,0.00017973,2]
[404550529,1770279045292,-500.0,0.00017973,2]
[404550530,1770279045302,-500.0,0.00017973,2]
[404550531,1770279045312,-262.39107038,0.00017973,2]
[404550532,1770279045322,-500.0,0.00017973,2]
[404550533,1770279045332,-150.0,0.00017973,2]
[404550534,1770279045342,-150.0,0.00017973,2]
[404550535,1770279045351,-519.49,0.00017989,2]
[404550536,1770279045361,-33863.48319073,0.0001799,3]
[404550537,1770279045371,-151.0,0.00017997,2]
[404550538,1770279045380,-300.0,0.00017999,2]
[404550539,1770279045391,-1010.8044,0.00017999,2]
[404550540,1770279045400,-300.0,0.00017999,2]
[404550541,1770279045410,-666.0,0.00017999,2]
[404550542,1770279045420,-519.49,0.00017999,2]
[404550543,1770279045430,-519.49,0.00017999,2]
[404550544,1770279045440,-519.49,0.00017999,2]
[404550545,1770279045450,-519.49,0.00017999,2]
[404550546,1770279045459,-519.49,0.00017999,2]
[404550547,1770279045469,-519.49,0.00017999,2]
[404550548,1770279045486,-519.49,0.00017999,2]
[404550549,1770279045496,-519.49,0.00017999,2]
[404550550,1770279045506,-519.49,0.00017999,2]
[404550551,1770279045516,-519.49,0.00017999,2]
[404550552,1770279045526,-519.49,0.00017999,2]
[404550553,1770279045535,-519.49,0.00017999,2]
[404550554,1770279045546,-519.53,0.00017999,2]
[404550555,1770279045556,-300.0,0.00017999,2]
[404550556,1770279045566,-666.0,0.00017999,2]
[404550557,1770279045576,-300.0,0.00017999,2]
[404550558,1770279045586,-778.44145262,0.00017999,2]
[404550559,1770279045596,-300.0,0.00017999,2]
[404550560,1770279045606,-300.0,0.00017999,2]
[404550561,1770279045616,-500.0,0.00017999,2]
[404550562,1770279045626,-500.0,0.00017999,2]
[404550563,1770279045635,-500.0,0.00017999,2]
[404550564,1770279045645,-500.0,0.00017999,2]
[404550565,1770279045655,-456.05071944,0.00017999,2]
[404550566,1770279045665,-1192.31670309,0.00018,2]
[404550567,1770279045676,-1526.12459702,0.00018,2]
[404550568,1770279045685,-1000.0,0.00018,2]
[404550569,1770279045696,-1000.0,0.00018,2]
[404550570,1770279045706,-1000.0,0.00018,2]
[404550571,1770279045716,-1000.0,0.00018,2]
[404550572,1770279045726,-1000.0,0.00018,2]
[404550573,1770279045735,-1000.0,0.00018,2]
[404550574,1770279045744,-1000.0,0.00018,2]
[404550575,1770279045753,-1000.0,0.00018,2]
[404550576,1770279045763,-1000.0,0.00018,2]
[404550577,1770279045772,-1000.0,0.00018,2]
[404550578,1770279045781,-1000.0,0.00018,2]
[404550579,1770279045791,-1000.0,0.00018,2]
[404550580,1770279045802,-1000.0,0.00018,2]
[404550581,1770279045811,-1000.0,0.00018,2]
[404550582,1770279045821,-1000.0,0.00018,2]
[404550583,1770279045830,-1000.0,0.00018,2]
[404550584,1770279045839,-1000.0,0.00018,2]
[404550585,1770279045849,-1000.0,0.00018,2]
[404550586,1770279045859,-1000.0,0.00018,2]
[404550587,1770279045868,-1000.0,0.00018,2]
[404550588,1770279045878,-1000.0,0.00018,2]
[404550589,1770279045887,-1000.0,0.00018,2]
[404550590,1770279045897,-1000.0,0.00018,2]
[404550591,1770279045906,-1141.04007611,0.00018,2]
[404550592,1770279045922,-2392986.31674081,0.00018,2]
[404550593,1770279046090,-395.92311807,0.00018,2]
[404550594,1770279046102,-843.40981153,0.00018,2]
[404550595,1770279046114,-23291.64764528,0.00018,2]
[404550596,1770279046134,-1729.9999,0.00018,2]
[404550597,1770279046146,-400.88155885,0.00018,2]
[404550608,1770279047098,-250.0,0.00015,2]
[404550609,1770279047108,-150.27588128,0.00016,2]
[404550610,1770279047119,-300.0,0.00017,2]
[404550611,1770279047128,-152.91785682,0.0001799,2]
[404550612,1770279047138,-706.17018425,0.00018,2]
[404550613,1770279047477,-8116.24000001,0.00018,2]
[404550614,1770279047489,-603.41291798,0.00018,2]
[404550615,1770279047568,-5820.26721666,0.00018,2]
[404550706,1770279048499,-2043.20701054,0.00010328,2]
[404550873,1770280232396,-154.98,0.00010188,2]
[404550876,1770280232406,-576.95,0.00010188,2]
[404550879,1770280232417,-1600.0,0.00010188,2]
[404550882,1770280232426,-250.0,0.00010188,2]
[404550884,1770280232436,-500.0,0.00010188,2]
[404550886,1770280232446,-154.98,0.00010916,2]
[404550888,1770280232456,-150.0,0.00011073,2]
[404550889,1770280232465,-150.0,0.00011073,2]
[404550890,1770280232475,-456.57901796,0.000111,2]
[404550891,1770280232491,-676.92004919,0.000111,2]
[404550892,1770280232503,-528.12118031,0.000111,2]
[404550893,1770280232516,-1905.14323361,0.000111,2]
[404550894,1770280232529,-1741.76684916,0.000111,2]
[404550895,1770280232541,-3558.18510261,0.000111,2]
[404550896,1770280232552,-1694.059,0.000111,2]
[404550897,1770280232564,-2929.71303019,0.000111,2]
[404550898,1770280232576,-1247.39962148,0.000111,2]
[404550899,1770280232588,-429.03935746,0.000111,2]
[404550900,1770280232599,-3540.27357432,0.000111,2]
[404550901,1770280232611,-1059.18764589,0.000111,2]
[404550911,1770280238499,-1156.56154767,0.000111,2]
[404550912,1770280238568,-355.65,0.000111,2]
[404550992,1770280240573,-774.6985844,0.000111,2]
[404550993,1770280240585,-1246.05101283,0.000111,2]
[404550994,1770280240596,-611.84646752,0.000111,2]
[404550995,1770280240607,-6670.48358434,0.000111,2]
[404550996,1770280240801,-3057716.21238839,0.000111,2]
[404550998,1770280240999,-11174.06930846,0.000111,2]
[404550999,1770280241010,-448.89631488,0.000111,2]
[404551018,1770280246539,-7405.67038947,0.000111,2]
[404551019,1770280246556,-397.11500126,0.000111,2]
[404551124,1770280843019,-178.0,0.00021366,120]
[404551131,1770281341657,14441.08012071,0.00021,30]
[404551133,1770281431432,-1000.0,0.00010219,2]
[404551134,1770281431442,-500.0,0.00010415,2]
[404551135,1770281431452,-276.0926,0.00010699,2]
[404551138,1770281431462,-189173.54925173,0.00010699,2]
[404551139,1770281431492,-13688.00683058,0.00010699,2]
[404551140,1770281431505,-73042.08460434,0.00010699,2]
[404551141,1770281431522,-257.4828,0.00010699,2]
[404551142,1770281431535,-999.0,0.00010699,2]
[404551143,1770281431578,-2379.46437723,0.00010699,2]
[404551144,1770281431598,-670.50807902,0.00010699,2]
[404551145,1770281431609,-9337.774745,0.00010699,2]
[404551146,1770281431650,-508.0,0.00010699,2]
[404551150,1770281437594,-407019.98301706,0.00010699,2]
[404551151,1770281437605,-3410.07038032,0.00010699,2]
[404551152,1770281437650,-4478.58728033,0.00010699,2]
[404551414,1770281445996,-3699.63781879,0.00010699,2]
[404552158,1770281725294,-167.0,0.00022491,120]
[404552159,1770281725335,-500.0,0.00024999,120]
[404552160,1770281725376,-179.1013665,0.00026622,120]
[404552161,1770281725412,-561.180481,0.00026999,120]
[404552162,1770281725449,-226.25083194,0.00027284,120]
[404552163,1770281725490,-3366.46732056,0.000295,120]
[404552182,1770282631690,-187.55,8.638e-05,2]
[404552184,1770282631701,-698.11,9.501e-05,2]
[404552189,1770282631744,-501.89,9.501e-05,2]
[404552190,1770282631755,-250.0,9.502e-05,2]
[404552191,1770282631764,-250.0,9.502e-05,2]
[404552192,1770282631775,-300.0,9.502e-05,2]
[404552193,1770282631787,-250.0,9.502e-05,2]
[404552194,1770282631798,-48.11,9.502e-05,2]
[404552195,1770282631811,-251.89,9.502e-05,2]
[404552196,1770282631821,-500.0,9.502e-05,2]
[404552197,1770282631831,-193.0,9.502e-05,2]
[404552198,1770282631842,-598.69629546,9.502e-05,2]
[404552199,1770282631855,-2283.29169295,9.502e-05,2]
[404552200,1770282631866,-1600.0,9.714e-05,2]
[404552201,1770282631877,-200.0,9.822e-05,2]
[404552202,1770282631888,-158.67,9.853e-05,2]
[404552203,1770282631898,-158.67,9.968e-05,2]
[404552204,1770282631909,-501.0,0.00010027,2]
[404552206,1770282631920,-150.99,0.00010027,2]
[404552208,1770282631930,-150.0,0.00010082,2]
[404552209,1770282631940,-158.67,0.00010083,2]
[404552210,1770282631952,-499.99,0.00010083,2]
[404552211,1770282631964,-999.99,0.00010083,2]
[404552212,1770282631974,-262.91407501,0.00010083,2]
[404552213,1770282631987,-619.35433313,0.00010083,2]
[404552214,1770282631999,-286.98,0.00010083,2]
[404552215,1770282632011,-832.22856812,0.00010083,2]
[404552216,1770282632024,-1293.07089697,0.00010083,2]
[404552217,1770282632050,-2830.76908413,0.00010083,2]
[404552218,1770282632072,-994.88176241,0.00010083,2]
[404552219,1770282632085,-2879.79128023,0.00010083,2]
[404552220,1770282632096,-311.23,0.00010083,2]
[404552221,1770282632107,-299.99,0.00010083,2]
[404552222,1770282632117,-6655.19,0.00010083,2]
[404552223,1770282632128,-150.99,0.00010083,2]
[404552224,1770282632138,-9999.99,0.00010083,2]
[404552225,1770282632149,-4999.99,0.00010083,2]
[404552226,1770282632159,-9999.99,0.00010083,2]
[404552227,1770282632170,-192.18,0.00010182,2]
[404552228,1770282632181,-158.67,0.00010198,2]
[404552229,1770282632192,-11876.68,0.00010337,2]
[404552230,1770282632203,-1054.3,0.00010341,2]
[404552231,1770282632213,-500.0,0.00010368,2]
[404552232,1770282632224,-198.81,0.00010423,2]
[404552233,1770282632234,-1680.0,0.00010451,2]
[404552234,1770282632245,-200.0,0.00010493,2]
[404552235,1770282632255,-200.0,0.00010493,2]
[404552236,1770282632265,-151.0,0.00010493,2]
[404552237,1770282632276,-151.0,0.00010493,2]
[404552238,1770282632289,-151.0,0.00010493,2]
[404552239,1770282632299,-151.0,0.00010493,2]
[404552240,1770282632309,-151.0,0.00010493,2]
[404552241,1770282632319,-151.0,0.00010493,2]
[404552242,1770282632329,-151.0,0.00010493,2]
[404552243,1770282632339,-151.0,0.00010493,2]
[404552244,1770282632350,-151.0,0.00010493,2]
[404552245,1770282632361,-151.0,0.00010493,2]
[404552246,1770282632371,-174.7792847,0.00010493,2]
[404552247,1770282632382,-500.0,0.00010493,2]
[404552248,1770282632396,-1000.0,0.00010499,2]
[404552249,1770282632407,-500.0,0.00010525,2]
[404552250,1770282632417,-1232.94,0.00010525,2]
[404552251,1770282632428,-1440.53628294,0.00010639,2]
[404552252,1770282632439,-2642.6339,0.00010692,2]
[404552253,1770282632449,-26496.8487,0.00010699,2]
[404552254,1770282632459,-6844.62616357,0.00010739,2]
[404552255,1770282632470,-192.18,0.00010748,2]
[404552256,1770282632480,-500.0,0.00010799,2]
[404552257,1770282632490,-269.92100004,0.00010799,2]
[404552258,1770282632500,-150.0,0.00010799,2]
[404552259,1770282632511,-150.0,0.00010854,2]
[404552260,1770282632522,-1600.0,0.00010928,2]
[404552261,1770282632533,-500.0,0.00010959,2]
[404552262,1770282632544,-166.66,0.00010959,2]
[404552263,1770282632554,-200.0,0.00011041,2]
[404552264,1770282632564,-200.0,0.00011041,2]
[404552265,1770282632574,-500.0,0.00011041,2]
[404552266,1770282632584,-500.0,0.00011073,2]
[404552267,1770282632594,-255.0,0.0001109,2]
[404552268,1770282632608,-390.69693123,0.000111,2]
[404552269,1770282632619,-151.0,0.000111,2]
[404552270,1770282632629,-166.66,0.00011134,2]
[404552271,1770282632639,-2500.0,0.00011221,2]
[404552272,1770282632650,-9869.81,0.00011241,2]
[404552273,1770282632661,-166.66,0.0001131,2]
[404552274,1770282632672,-192.18,0.00011314,2]
[404552275,1770282632683,-277.19,0.00011345,2]
[404552276,1770282632692,-502.96360645,0.00011347,2]
[404552277,1770282632703,-250.37152364,0.00011414,2]
[404552278,1770282632713,-166.66,0.00011485,2]
[404552279,1770282632723,-412.0,0.00011496,2]
[404552280,1770282632734,-1000.0,0.00011496,2]
[404552281,1770282632744,-206.88,0.00011574,2]
[404552282,1770282632754,-233.22924952,0.00011589,2]
[404552283,1770282632764,-500.0,0.00011589,2]
[404552284,1770282632774,-166.66,0.00011661,2]
[404552285,1770282632790,-166.66,0.00011836,2]
[404552286,1770282632800,-192.18,0.00011879,2]
[404552287,1770282632811,-500.0,0.00012137,2]
[404552288,1770282632821,-1600.0,0.00012142,2]
[404552289,1770282632831,-433.0,0.00012199,2]
[404552290,1770282632842,-150.0,0.00012245,2]
[404552291,1770282632852,-1112.06,0.00012308,2]
[404552292,1770282632862,-192.18,0.00012445,2]
[404552293,1770282632873,-166.66,0.00012499,2]
[404552294,1770282632889,-7758.03941345,0.00012752,2]
[404552295,1770282632899,-1000.0,0.00012774,2]
[404552296,1770282632909,-166.66,0.00012911,2]
[404552297,1770282632920,-187.55,0.00012957,2]
[404552298,1770282632930,-192.18,0.00013011,2]
[404552299,1770282632940,-391.0,0.00013315,2]
[404552300,1770282632950,-166.66,0.00013324,2]
[404552301,1770282632962,-7758.03941337,0.00013324,2]
[404552302,1770282632972,-1600.0,0.00013356,2]
[404552303,1770282632982,-375.0,0.00013419,2]
[404552304,1770282632993,-3240.0,0.00013425,2]
[404552305,1770282633004,-192.18,0.00013576,2]
[404552306,1770282633014,-391.0,0.00013596,2]
[404552307,1770282633025,-167.45602324,0.00013697,2]
[404552308,1770282633041,-500.0,0.00013697,2]
[404552309,1770282633051,-500.0,0.00013697,2]
[404552310,1770282633063,-500.0,0.00013697,2]
[404552311,1770282633074,-500.0,0.00013697,2]
[404552312,1770282633084,-500.0,0.00013697,2]
[404552313,1770282633095,-500.0,0.00013697,2]
[404552314,1770282633105,-500.0,0.00013697,2]
[404552315,1770282633116,-500.0,0.00013697,2]
[404552316,1770282633126,-500.0,0.00013697,2]
[404552317,1770282633136,-500.0,0.00013697,2]
[404552318,1770282633150,-500.0,0.00013697,2]
[404552319,1770282633160,-500.0,0.00013697,2]
[404552320,1770282633170,-500.0,0.00013697,2]
[404552321,1770282633181,-500.0,0.00013697,2]
[404552322,1770282633192,-500.0,0.00013697,2]
[404552323,1770282633202,-500.0,0.00013697,2]
[404552324,1770282633212,-500.0,0.00013697,2]
[404552325,1770282633222,-500.0,0.00013697,2]
[404552326,1770282633232,-500.0,0.00013697,2]
[404552327,1770282633242,-500.0,0.00013697,2]
[404552328,1770282633252,-500.0,0.00013697,2]
[404552329,1770282633262,-500.0,0.00013697,2]
[404552330,1770282633273,-500.0,0.00013697,2]
[404552331,1770282633286,-500.0,0.00013697,2]
[404552332,1770282633296,-500.0,0.00013697,2]
[404552333,1770282633307,-500.0,0.00013697,2]
[404552334,1770282633317,-500.0,0.00013697,2]
[404552335,1770282633327,-500.0,0.00013697,2]
[404552336,1770282633337,-500.0,0.00013697,2]
[404552337,1770282633350,-500.0,0.00013697,2]
[404552338,1770282633361,-500.0,0.00013697,2]
[404552339,1770282633375,-500.0,0.00013697,2]
[404552340,1770282633392,-500.0,0.00013697,2]
[404552341,1770282633404,-500.0,0.00013697,2]
[404552342,1770282633416,-500.0,0.00013697,2]
[404552343,1770282633427,-500.0,0.00013697,2]
[404552344,1770282633438,-500.0,0.00013697,2]
[404552345,1770282633448,-500.0,0.00013697,2]
[404552346,1770282633458,-500.0,0.00013697,2]
[404552347,1770282633468,-500.0,0.00013697,2]
[404552348,1770282633478,-500.0,0.00013697,2]
[404552349,1770282633488,-500.0,0.00013697,2]
[404552350,1770282633498,-332.01787002,0.00013697,2]
[404552351,1770282633509,-500.0,0.00013697,2]
[404552352,1770282633519,-500.0,0.00013697,2]
[404552353,1770282633529,-500.0,0.00013697,2]
[404552354,1770282633542,-500.0,0.00013697,2]
[404552355,1770282633552,-500.0,0.00013697,2]
[404552356,1770282633562,-500.0,0.00013697,2]
[404552357,1770282633572,-500.0,0.00013697,2]
[404552358,1770282633583,-500.0,0.00013697,2]
[404552359,1770282633593,-500.0,0.00013697,2]
[404552360,1770282633604,-500.0,0.00013697,2]
[404552361,1770282633614,-500.0,0.00013697,2]
[404552362,1770282633624,-483.201787,0.00013697,2]
[404552363,1770282633634,-500.0,0.00013697,2]
[404552364,1770282633644,-500.0,0.00013697,2]
[404552365,1770282633656,-500.0,0.00013697,2]
[404552366,1770282633666,-500.0,0.00013697,2]
[404552367,1770282633677,-500.0,0.00013697,2]
[404552368,1770282633688,-500.0,0.00013697,2]
[404552369,1770282633698,-500.0,0.00013697,2]
[404552370,1770282633708,-500.0,0.00013697,2]
[404552371,1770282633719,-500.0,0.00013697,2]
[404552372,1770282633729,-500.0,0.00013697,2]
[404552373,1770282633756,-500.0,0.00013698,2]
[404552374,1770282633768,-500.0,0.00013698,2]
[404552375,1770282633780,-457.99797698,0.00013698,2]
[404552376,1770282633794,-519.49,0.00013698,2]
[404552377,1770282633805,-519.49,0.00013698,2]
[404552378,1770282633815,-519.49,0.00013698,2]
[404552379,1770282633826,-519.49,0.00013698,2]
[404552380,1770282633838,-519.49,0.00013698,2]
[404552381,1770282633848,-519.49,0.00013698,2]
[404552382,1770282633859,-519.49,0.00013698,2]
[404552383,1770282633870,-519.49,0.00013698,2]
[404552384,1770282633885,-519.49,0.00013698,2]
[404552385,1770282633895,-519.49,0.00013698,2]
[404552386,1770282633906,-500.0,0.00013698,2]
[404552387,1770282633917,-500.0,0.00013698,2]
[404552388,1770282633928,-500.0,0.00013698,2]
[404552389,1770282633939,-111.74702431,0.00013698,2]
[404552390,1770282633959,-388.25297569,0.00013698,2]
[404552391,1770282633970,-500.0,0.00013698,2]
[404552392,1770282633980,-500.0,0.00013698,2]
[404552393,1770282633991,-500.0,0.00013698,2]
[404552394,1770282634001,-418.4948437,0.00013698,2]
[404552395,1770282634012,-500.0,0.00013698,2]
[404552396,1770282634022,-317.48890391,0.00013698,2]
[404552397,1770282634038,-182.51109609,0.00013698,2]
[404552398,1770282634049,-500.0,0.00013698,2]
[404552399,1770282634059,-117.48890391,0.00013698,2]
[404552400,1770282637749,-272.9601677,9.502e-05,2]
[404552401,1770282637759,-151.0,0.00013697,2]
[404552402,1770282637769,-341.85981483,0.00013697,2]
[404552403,1770282637780,-382.51109609,0.00013698,2]
[404552404,1770282637791,-519.87500599,0.00013698,2]
[404552405,1770282637801,-500.0,0.00013698,2]
[404552406,1770282637811,-500.0,0.00013698,2]
[404552407,1770282637821,-500.0,0.00013698,2]
[404552408,1770282637831,-500.0,0.00013698,2]
[404552409,1770282637840,-500.0,0.00013698,2]
[404552410,1770282637851,-500.0,0.00013698,2]
[404552411,1770282637860,-500.0,0.00013698,2]
[404552412,1770282637870,-500.0,0.00013698,2]
[404552413,1770282637881,-350.20210057,0.00013698,2]
[404552414,1770282637892,-500.0,0.00013698,2]
[404552415,1770282637902,-500.0,0.00013698,2]
[404552416,1770282637912,-500.0,0.00013698,2]
[404552417,1770282637922,-160.87387984,0.00013698,2]
[404552418,1770282637932,-500.0,0.00013698,2]
[404552419,1770282637942,-171.71578603,0.00013698,2]
[404552420,1770282637955,-335.99077034,0.00013698,2]
[404552421,1770282637965,-76.69230747,0.00013698,2]
[404552422,1770282637977,-252.9257169,0.00013698,2]
[404552423,1770282637988,-170.38197563,0.00013698,2]
[404552424,1770282637998,-500.0,0.00013698,2]
[404552425,1770282638008,-131.61802437,0.00013698,2]
[404552426,1770282638024,-368.38197563,0.00013698,2]
[404552427,1770282638034,-500.0,0.00013698,2]
[404552428,1770282638044,-500.0,0.00013698,2]
[404552429,1770282638054,-590.10761957,0.00013698,2]
[404552430,1770282638064,-500.0,0.00013698,2]
[404552431,1770282638074,-500.0,0.00013698,2]
[404552433,1770282638084,-288.02611632,0.00013698,2]
[404552435,1770282638093,-500.0,0.00013698,2]
[404552436,1770282638103,-181.88664042,0.00013698,2]
[404552439,1770282638116,-318.11335958,0.00013698,2]
[404552441,1770282638126,-500.0,0.00013698,2]
[404552443,1770282638136,-57.17956133,0.00013698,2]
[404552445,1770282638149,-442.82043867,0.00013698,2]
[404552447,1770282638159,-500.0,0.00013698,2]
[404552449,1770282638169,-500.0,0.00013698,2]
[404552452,1770282638178,-500.0,0.00013698,2]
[404552455,1770282638188,-500.0,0.00013698,2]
[404552458,1770282638198,-500.0,0.00013698,2]
[404552461,1770282638208,-500.0,0.00013698,2]
[404552465,1770282638219,-500.0,0.00013698,2]
[404552468,1770282638229,-500.0,0.00013698,2]
[404552470,1770282638239,-500.0,0.00013698,2]
[404552472,1770282638250,-500.0,0.00013698,2]
[404552474,1770282638260,-500.0,0.00013698,2]
[404552476,1770282638271,-500.0,0.00013698,2]
[404552478,1770282638281,-500.0,0.00013698,2]
[404552480,1770282638295,-500.0,0.00013698,2]
[404552482,1770282638306,-500.0,0.00013698,2]
[404552484,1770282638316,-328.80573398,0.00013698,2]
[404552486,1770282638326,-500.0,0.00013698,2]
[404552488,1770282638336,-500.0,0.00013698,2]
[404552490,1770282638347,-500.0,0.00013698,2]
[404552492,1770282638358,-405.3888533,0.00013698,2]
[404552494,1770282638368,-500.0,0.00013698,2]
[404552496,1770282638378,-192.67143229,0.00013698,2]
[404552499,1770282638391,-309.29191888,0.00013698,2]
[404552501,1770282638402,-17.50808102,0.00013698,2]
[404552503,1770282638415,-482.49191898,0.00013698,2]
[404552505,1770282638425,-242.50808102,0.00013698,2]
[404552526,1770282638682,-257.49191898,0.00013698,2]
[404552527,1770282638693,-90.52249288,0.00013698,2]
[404552528,1770282638705,-409.47750712,0.00013698,2]
[404552529,1770282638716,-154.4710214,0.00013698,2]
[404552530,1770282638728,-345.5289786,0.00013698,2]
[404552531,1770282638737,-447.07793737,0.00013698,2]
[404552532,1770282638748,-2482.56,0.00013699,2]
[404552533,1770282638758,-1991.02,0.00013699,2]
[404552534,1770282638767,-200.0,0.00013699,2]
[404552535,1770282638777,-711.92,0.00013699,2]
[404552536,1770282638787,-166.66,0.00013737,2]
[404552537,1770282638797,-391.0,0.0001388,2]
[404552538,1770282638808,-5199.35224051,0.00013896,2]
[404552539,1770282638819,-2558.68717286,0.00013896,2]
[404552540,1770282638829,-391.0,0.00014031,2]
[404552541,1770282638839,-1000.0,0.00014051,2]
[404552542,1770282638849,-391.0,0.00014052,2]
[404552543,1770282638859,-160.0,0.00014058,2]
[404552544,1770282638869,-519.49,0.0001413,2]
[404552545,1770282638883,-391.0,0.0001414,2]
[404552546,1770282638894,-192.18,0.00014142,2]
[404552547,1770282638904,-166.66,0.00014149,2]
[404552548,1770282638913,-333.63660248,0.00014168,2]
[404552549,1770282639774,-299.12733798,0.00013698,2]
[404552550,1770282639784,-57.36339752,0.00014168,2]
[404552551,1770282639794,-2548.64070605,0.00014182,2]
[404552552,1770282639803,-391.0,0.00014282,2]
[404552553,1770282639813,-151.0,0.00014349,2]
[404552554,1770282639822,-351.5182,0.00014351,2]
[404552555,1770282639832,-1991.02,0.00014384,2]
[404552556,1770282639841,-7758.03941337,0.00014468,2]
[404552557,1770282639851,-391.0,0.00014505,2]
[404552558,1770282639860,-391.0,0.00014516,2]
[404552559,1770282639869,-13827.0,0.00014527,2]
[404552560,1770282639881,-391.0,0.00014536,2]
[404552561,1770282639891,-166.66,0.00014562,2]
[404552562,1770282639901,-1600.0,0.00014571,2]
[404552563,1770282639910,-500.0,0.000146,2]
[404552564,1770282639923,-500.0,0.000146,2]
[404552565,1770282639933,-500.0,0.000146,2]
[404552566,1770282639943,-500.0,0.000146,2]
[404552567,1770282639954,-500.0,0.000146,2]
[404552568,1770282639964,-173.07272258,0.000146,2]
[404552569,1770282639973,-500.0,0.000146,2]
[404552570,1770282639986,-500.0,0.000146,2]
[404552571,1770282639996,-500.0,0.000146,2]
[404552572,1770282640005,-500.0,0.000146,2]
[404552573,1770282640014,-500.0,0.000146,2]
[404552574,1770282640024,-500.0,0.000146,2]
[404552575,1770282640034,-500.0,0.000146,2]
[404552576,1770282640044,-500.0,0.000146,2]
[404552577,1770282640054,-500.0,0.000146,2]
[404552578,1770282640063,-500.0,0.000146,2]
[404552579,1770282640073,-500.0,0.000146,2]
[404552580,1770282640082,-500.0,0.000146,2]
[404552581,1770282640092,-500.0,0.0001463,2]
[404552582,1770282640103,-391.0,0.00014636,2]